{"text_format":"3","workbook":"xlsx","n_sheets":3,"sheets":["Popis učenika","Evidencija učenika","Detalji o učeniku"],"not_rendered":{"images":2,"defined_names":8},"read":"whole","date_system":"1900"}

{"sheet":"Popis učenika","index":0,"n_rows":8,"n_cols":13,"rows_kept":8,"merged":[[1,2,2,3],[1,4,1,11],[2,4,2,11],[6,12,8,16]]}
[]
[null,null,"Popis učenika",null,"OTVORI POPIS UČENIKA"]
[{"$nulls":4},"OTVORI DETALJE O UČENIKU"]
[null,null,"IME I PREZIME UČENIKA","ADRESA E-POŠTE","TELEFON KOD KUĆE","MOBILNI TELEFON","DATUM ROĐENJA","OSOBA ZA KONTAKT U HITNIM SLUČAJEVIMA","TELEFONSKI BROJ ZA HITNE SLUČAJEVE","LIJEČNIK","TELEFONSKI BROJ LIJEČNIKA","  "]
[null,null,"Ime i prezime 1","Adresa e-pošte","Telefon kod kuće","Mobilni telefon","Datum","Osoba za kontakt 1","Telefonski broj za hitne slučajeve","Liječnik 1","Telefonski broj liječnika"]
[null,null,"Ime i prezime 2","Adresa e-pošte","Telefon kod kuće","Mobilni telefon","Datum","Osoba za kontakt 2","Telefonski broj za hitne slučajeve","Liječnik 2","Telefonski broj liječnika"]
[null,null,"Ime i prezime 3","Adresa e-pošte","Telefon kod kuće","Mobilni telefon","Datum","Osoba za kontakt 3","Telefonski broj za hitne slučajeve","Liječnik 3","Telefonski broj liječnika",null,"Savjet: da biste dodali još učenika, u posljednjoj ćeliji tablice pritisnite tipku tabulatora."]
[null,null,"Ime i prezime 4","Adresa e-pošte","Telefon kod kuće","Mobilni telefon","Datum","Osoba za kontakt 4","Telefonski broj za hitne slučajeve","Liječnik 4","Telefonski broj liječnika"]

{"sheet":"Evidencija učenika","index":1,"n_rows":12,"n_cols":7,"rows_kept":12,"merged":[[1,2,2,2],[1,3,2,3],[1,4,1,6],[2,4,2,6]]}
[]
[null,null,"Evidencija učenika","Institut za grafički dizajn","OTVORI POPIS UČENIKA"]
[{"$nulls":4},"OTVORI DETALJE O UČENIKU"]
[null,null,"KOLEGIJ","Naziv kolegija","DATUM POČETKA","Datum"]
[null,null,"PREDAVAČ","Predavač 1","DATUM ZAVRŠETKA","Datum"]
[null,null,"PRIJAVLJENI UČENICI",{"$f":"COUNTA(EvidencijaUčenika[IME I PREZIME UČENIKA])","v":4}]
[]
[null,null,"IME I PREZIME UČENIKA","ADRESA E-POŠTE","TELEFON KOD KUĆE","MOBILNI TELEFON","  "]
[null,null,"Ime i prezime 1",{"$f":"IFERROR(VLOOKUP(EvidencijaUčenika[[#This Row],[IME I PREZIME UČENIKA]],Učenici[],2),\"\")","v":"Adresa e-pošte"},{"$f":"IFERROR(VLOOKUP(EvidencijaUčenika[[#This Row],[IME I PREZIME UČENIKA]],Učenici[],3),\"\")","v":"Telefon kod kuće"},{"$f":"IFERROR(VLOOKUP(EvidencijaUčenika[[#This Row],[IME I PREZIME UČENIKA]],Učenici[],4),\"\")","v":"Mobilni telefon"}]
[null,null,"Ime i prezime 2",{"$f":"IFERROR(VLOOKUP(EvidencijaUčenika[[#This Row],[IME I PREZIME UČENIKA]],Učenici[],2),\"\")","v":"Adresa e-pošte"},{"$f":"IFERROR(VLOOKUP(EvidencijaUčenika[[#This Row],[IME I PREZIME UČENIKA]],Učenici[],3),\"\")","v":"Telefon kod kuće"},{"$f":"IFERROR(VLOOKUP(EvidencijaUčenika[[#This Row],[IME I PREZIME UČENIKA]],Učenici[],4),\"\")","v":"Mobilni telefon"}]
[null,null,"Ime i prezime 3",{"$f":"IFERROR(VLOOKUP(EvidencijaUčenika[[#This Row],[IME I PREZIME UČENIKA]],Učenici[],2),\"\")","v":"Adresa e-pošte"},{"$f":"IFERROR(VLOOKUP(EvidencijaUčenika[[#This Row],[IME I PREZIME UČENIKA]],Učenici[],3),\"\")","v":"Telefon kod kuće"},{"$f":"IFERROR(VLOOKUP(EvidencijaUčenika[[#This Row],[IME I PREZIME UČENIKA]],Učenici[],4),\"\")","v":"Mobilni telefon"}]
[null,null,"Ime i prezime 4",{"$f":"IFERROR(VLOOKUP(EvidencijaUčenika[[#This Row],[IME I PREZIME UČENIKA]],Učenici[],2),\"\")","v":"Adresa e-pošte"},{"$f":"IFERROR(VLOOKUP(EvidencijaUčenika[[#This Row],[IME I PREZIME UČENIKA]],Učenici[],3),\"\")","v":"Telefon kod kuće"},{"$f":"IFERROR(VLOOKUP(EvidencijaUčenika[[#This Row],[IME I PREZIME UČENIKA]],Učenici[],4),\"\")","v":"Mobilni telefon"}]

{"sheet":"Detalji o učeniku","index":2,"n_rows":13,"n_cols":4,"rows_kept":13,"merged":[[1,2,2,2],[1,3,1,4],[2,3,2,4],[3,2,3,3]]}
[]
[null,null,"Detalji o učeniku","OTVORI POPIS UČENIKA"]
[{"$nulls":3},"OTVORI POPIS UČENIKA"]
[null,null,"SAVJET: ODABERITE UČENIKA S PADAJUĆEG POPISA U ĆELIJI D5 DA BISTE AŽURIRALI DETALJE O NJEMU."]
[null,null,"IME I PREZIME UČENIKA","Ime i prezime 1"]
[null,null,"ADRESA E-POŠTE",{"$f":"IFERROR(VLOOKUP(ImeUčenika,Učenici[],2,FALSE),\"\")","v":"Adresa e-pošte"}]
[null,null,"TELEFON KOD KUĆE",{"$f":"IFERROR(VLOOKUP(ImeUčenika,Učenici[],3,FALSE),\"\")","v":"Telefon kod kuće"}]
[null,null,"MOBILNI TELEFON",{"$f":"IFERROR(VLOOKUP(ImeUčenika,Učenici[],4,FALSE),\"\")","v":"Mobilni telefon"}]
[null,null,"Datum rođenja",{"$f":"IFERROR(VLOOKUP(ImeUčenika,Učenici[],5,FALSE),\"\")","v":"Datum"}]
[null,null,"OSOBA ZA KONTAKT U HITNIM SLUČAJEVIMA",{"$f":"IFERROR(VLOOKUP(ImeUčenika,Učenici[],6,FALSE),\"\")","v":"Osoba za kontakt 1"}]
[null,null,"TELEFONSKI BROJ ZA HITNE SLUČAJEVE",{"$f":"IFERROR(VLOOKUP(ImeUčenika,Učenici[],7,FALSE),\"\")","v":"Telefonski broj za hitne slučajeve"}]
[null,null,"LIJEČNIK",{"$f":"IFERROR(VLOOKUP(ImeUčenika,Učenici[],8,FALSE),\"\")","v":"Liječnik 1"}]
[null,null,"TELEFONSKI BROJ LIJEČNIKA",{"$f":"IFERROR(VLOOKUP(ImeUčenika,Učenici[],9,FALSE),\"\")","v":"Telefonski broj liječnika"}]